bitfinex-derivatives/quotes_SOLF0:USTF0_20241029
["timestamp","ask_amount","ask_price","bid_price","bid_amount"]
[1730223767967,6.77011738,181.71,181.67,6.77011738]
[1730223768364,6.77011738,181.71,181.63,1.2875]
[1730223768365,2.7522,181.7,181.66,6.77011738]
[1730223768766,2.7522,181.7,181.66,9.52271738]
[1730223770572,9.52231738,181.7,181.66,9.52271738]
[1730223771171,2.7522,181.7,181.66,9.52271738]
[1730223772165,2.7522,181.7,181.66,6.77011738]
[1730223772373,2.7522,181.7,181.68,6.77011738]
[1730223772571,11.43011738,181.72,181.69,6.77011738]
[1730223773074,2.752,181.71,181.69,6.77011738]
[1730223773468,200.23949984,181.76,181.7,6.77011738]
[1730223773668,2.7517,181.74,181.7,9.52211738]
[1730223773873,11.43011738,181.75,181.72,6.77011738]
[1730223774075,11.43011738,181.75,181.7,9.52211738]
[1730223774475,2.7518,181.73,181.7,2.752]
[1730223774974,6.77011738,181.73,181.69,6.77011738]
[1730223775176,2.752,181.72,181.69,9.52241738]
[1730223775367,6.77011738,181.73,181.69,2.7523]
[1730223775770,2.752,181.72,181.69,2.7523]
[1730223776077,6.77011738,181.73,181.69,2.7523]
[1730223776772,2.7521,181.71,181.68,2.7524]
[1730223776973,2.7521,181.71,181.68,9.52251738]
[1730223778981,4.66,181.75,181.63,1.2875]
[1730223778982,6.77011738,181.74,181.69,9.52241738]
[1730223779177,2.7518,181.73,181.7,6.77011738]
[1730223779672,2.7518,181.73,181.7,9.52221738]
[1730223780074,2.7515,181.74,181.72,6.77011738]
[1730223780682,2.7515,181.74,181.71,2.7519]
[1730223780981,2.7518,181.73,181.7,9.52221738]
[1730223781878,2.7518,181.73,181.7,2.7521]
[1730223783583,2.7518,181.73,181.69,6.77011738]
[1730223783584,2.7519,181.72,181.69,9.52241738]
[1730223783789,2.7519,181.72,181.63,1.2875]
[1730223783790,6.77011738,181.72,181.63,1.2875]
[1730223783988,6.77011738,181.72,181.68,6.77011738]
[1730223784679,6.77011738,181.73,181.69,2.7523]
[1730223785281,6.77011738,181.72,181.68,2.7524]
[1730223785489,6.77011738,181.72,181.67,6.77011738]
[1730223785693,2.7519,181.72,181.68,6.77011738]
[1730223785986,2.7519,181.72,181.69,2.7523]
[1730223787087,2.7519,181.72,181.69,9.52241738]
[1730223789282,6.77011738,181.73,181.69,6.77011738]
[1730223789480,9.52181738,181.73,181.7,2.7521]
[1730223789891,200.23949984,181.76,181.71,6.77011738]
[1730223790204,4.66,181.75,181.72,6.77011738]
[1730223790586,4.66,181.75,181.74,2.7515]
[1730223790890,4.66,181.75,181.72,6.77011738]
[1730223791086,200.23949984,181.76,181.72,6.77011738]
[1730223791290,204.89949984,181.76,181.73,2.7516]
[1730223792485,204.89949984,181.76,181.72,6.77011738]
[1730223792691,211.66961722,181.76,181.71,6.77011738]
[1730223793201,2.7514,181.75,181.72,2.7517]
[1730223793894,2.7514,181.75,181.72,9.52181738]
[1730223794494,2.7514,181.75,181.72,2.7517]
[1730223794887,2.7516,181.74,181.71,2.7519]
[1730223795393,2.7516,181.74,181.7,2.752]
[1730223795586,2.7516,181.74,181.64,4.66]
[1730223795587,200.23949984,181.76,181.73,6.77011738]
[1730223795786,200.23949984,181.76,181.65,1.2286]
[1730223795987,2.7515,181.75,181.71,2.7519]
[1730223796191,2.7515,181.75,181.72,6.77011738]
[1730223797090,2.7515,181.75,181.71,2.7519]
[1730223797091,6.77011738,181.75,181.71,6.77011738]
[1730223797990,2.7516,181.74,181.71,9.52201738]
[1730223799696,4.66,181.74,181.73,9.52181738]
[1730223799898,4.66,181.74,181.73,6.77011738]
[1730223800287,200.23949984,181.76,181.73,6.77011738]
[1730223800495,4.66,181.77,181.75,6.77011738]
[1730223800897,2.751,181.78,181.75,9.52151738]
[1730223801692,4.66,181.8,181.77,9.52111738]
[1730223801899,4.66,181.8,181.77,2.751]
[1730223802494,4.66,181.8,181.7,2.4875]
[1730223802495,1.2523,181.86,181.78,6.77011738]
[1730223802693,6.77011738,181.83,181.78,6.77011738]
[1730223802888,2.7504,181.82,181.78,6.77011738]
[1730223803092,6.77011738,181.83,181.78,6.77011738]
[1730223803495,14.18031738,181.83,181.78,6.77011738]
[1730223803694,14.18031738,181.83,181.8,2.7506]
[1730223804195,6.77011738,181.81,181.76,6.77011738]
[1730223804796,9.52071738,181.81,181.78,2.7509]
[1730223806499,2.7506,181.81,181.78,9.52101738]
[1730223808008,4.66,181.83,181.79,6.77011738]
[1730223808409,11.43011738,181.83,181.79,6.77011738]
[1730223809101,2.7505,181.82,181.79,9.52081738]
[1730223809302,6.77011738,181.82,181.78,6.77011738]
[1730223809908,6.77011738,181.82,181.76,6.77011738]
[1730223810210,6.77011738,181.81,181.76,6.77011738]
[1730223810398,2.7509,181.79,181.75,6.77011738]
[1730223811904,2.7509,181.79,181.76,6.77011738]
[1730223812412,2.7509,181.79,181.76,9.52131738]
[1730223813708,2.751,181.78,181.75,9.52151738]
[1730223814499,6.77011738,181.81,181.75,9.52151738]
[1730223814705,2.751,181.78,181.75,9.52151738]
[1730223815200,7.391,181.78,181.75,9.52151738]
[1730223817405,7.391,181.78,181.75,6.77011738]
[1730223817609,7.391,181.78,181.76,2.7512]
[1730223818516,7.391,181.78,181.71,1.2434]
[1730223818702,7.391,181.78,181.75,2.7514]
[1730223820709,2.7511,181.77,181.75,2.7514]
[1730223821112,2.7511,181.77,181.74,2.7515]
[1730223821314,2.7516,181.74,181.7,9.25761738]
[1730223821613,6.77011738,181.76,181.72,6.77011738]
[1730223822006,6.77011738,181.76,181.73,9.52171738]
[1730223822007,2.7514,181.76,181.73,9.52171738]
[1730223822211,14.20823904,181.78,181.73,9.52171738]
[1730223822815,2.7513,181.76,181.73,9.52171738]
[1730223823017,14.20823904,181.78,181.65,1.3071]
[1730223823317,6.77011738,181.73,181.68,6.77011738]
[1730223823519,4.64,181.72,181.68,6.77011738]
[1730223826422,4.64,181.72,181.65,2.6146]
[1730223826423,4.64,181.72,181.7,6.77011738]
[1730223826623,4.64,181.72,181.71,6.77011738]
[1730223826921,4.64,181.72,181.66,1.2324]
[1730223827117,4.64,181.72,181.71,6.77011738]
[1730223830323,2.7517,181.73,181.71,6.77011738]
[1730223830918,2.7518,181.72,181.71,6.77011738]
[1730223832420,7.3917,181.74,181.71,6.77011738]
[1730223832622,4.64,181.74,181.71,6.77011738]
[1730223833225,2.7518,181.73,181.71,6.77011738]
[1730223833816,4.64,181.74,181.71,6.77011738]
[1730223834024,2.7517,181.73,181.71,6.77011738]
[1730223834627,2.7519,181.72,181.69,9.52231738]
[1730223837019,2.7519,181.72,181.7,6.77011738]
[1730223837716,4.64,181.74,181.7,6.77011738]
[1730223838026,7.3916,181.74,181.72,6.77011738]
[1730223838430,4.64,181.74,181.72,9.52191738]
[1730223839327,6.77011738,181.77,181.72,6.77011738]
[1730223839535,2.79812166,181.78,181.73,6.77011738]
[1730223839724,4.64,181.77,181.73,6.77011738]
[1730223840028,2.7514,181.76,181.73,9.52171738]
[1730223840223,4.64,181.77,181.73,6.77011738]
[1730223840426,6.77011738,181.76,181.72,6.77011738]
[1730223840831,6.77011738,181.75,181.7,6.77011738]
[1730223843333,2.7519,181.72,181.7,6.77011738]
[1730223844135,2.7519,181.72,181.7,2.7521]
[1730223844326,2.7519,181.72,181.66,1.2324]
[1730223844631,2.7519,181.72,181.7,6.77011738]
[1730223845434,2.752,181.71,181.7,6.77011738]
[1730223845625,4.64,181.72,181.67,6.77011738]
[1730223845825,4.64,181.72,181.68,6.77011738]
[1730223846422,2.7521,181.7,181.68,6.77011738]
[1730223847226,2.752,181.71,181.68,9.52251738]
[1730223847522,4.64,181.72,181.7,6.77011738]
[1730223848118,7.3919,181.72,181.7,6.77011738]
[1730223849929,4.64,181.72,181.69,6.77011738]
[1730223850232,2.752,181.71,181.69,6.77011738]
[1730223850427,2.752,181.71,181.68,9.52251738]
[1730223851036,2.752,181.71,181.69,6.77011738]
[1730223853429,4.64,181.72,181.69,6.77011738]
[1730223853631,6.77011738,181.7,181.5,2.7417655]
[1730223853835,6.77011738,181.67,181.61,6.77011738]
[1730223854024,4.64,181.66,181.61,6.77011738]
[1730223854428,2.753,181.65,181.62,2.7534]
[1730223854629,2.753,181.65,181.61,6.77011738]
[1730223854836,7.36414065,181.66,181.61,6.77011738]
[1730223855039,2.7532,181.64,181.61,9.52351738]
[1730223855241,2.7532,181.64,181.61,6.77011738]
[1730223856242,2.7532,181.63,181.6,2.7536]
[1730223856439,7.36414065,181.66,181.57,1.2138]
[1730223856440,6.77011738,181.64,181.57,1.2138]
[1730223856649,6.77011738,181.62,181.57,1.2138]
[1730223856836,7.3935,181.61,181.58,2.754]
[1730223857346,4.64,181.61,181.59,9.52381738]
[1730223858545,4.64,181.61,181.59,6.77011738]
[1730223859243,4.64,181.61,181.59,9.52391738]
[1730223860147,4.64,181.61,181.58,2.7538]
[1730223860650,4.64,181.61,181.6,6.77011738]
[1730223863151,4.64,181.61,181.59,2.7538]
[1730223863354,4.64,181.61,181.6,6.77011738]
[1730223865554,4.64,181.61,181.55,1.3295]
[1730223865853,4.64,181.61,181.6,6.77011738]
[1730223866351,4.64,181.61,181.6,9.52381738]
[1730223868758,5.47704065,181.66,181.63,2.7532]
[1730223868959,5.47704065,181.66,181.55,1.3295]
[1730223868960,4.64,181.65,181.55,1.3295]
[1730223869158,4.64,181.65,181.61,6.77011738]
[1730223869353,2.7533,181.63,181.61,6.77011738]
[1730223869557,4.64,181.65,181.61,6.77011738]
[1730223869958,2.7531,181.64,181.61,6.77011738]
[1730223870354,9.52321738,181.64,181.61,6.77011738]
[1730223870561,2.7532,181.63,181.6,9.52371738]
[1730223870863,2.7532,181.63,181.6,2.7536]
[1730223871969,6.77011738,181.64,181.59,6.77011738]
[1730223872168,9.52321738,181.64,181.61,2.7535]
[1730223872572,6.77011738,181.63,181.55,1.3295]
[1730223872773,6.77011738,181.62,181.57,6.77011738]
[1730223872958,6.77011738,181.58,181.52,1.3063]
[1730223873263,4.62,181.57,181.52,6.77011738]
[1730223873469,4.62,181.57,181.51,6.77011738]
[1730223873470,6.77011738,181.56,181.51,6.77011738]
[1730223873969,9.4623976,181.56,181.51,6.77011738]
[1730223874169,9.4623976,181.56,181.48,2.6046]
[1730223874367,9.4623976,181.56,181.51,6.77011738]
[1730223874562,12.2167976,181.56,181.52,2.7547]
[1730223874963,9.4623976,181.56,181.52,2.7547]
[1730223875266,2.7548,181.52,181.48,2.7553]
[1730223875563,7.3748,181.52,181.48,9.52541738]
[1730223875866,14.14491738,181.52,181.48,9.52541738]
[1730223876062,2.7561,181.44,181.4,2.7566]
[1730223876263,6.77011738,181.49,181.43,6.77011738]
[1730223876470,4.62,181.48,181.45,6.77011738]
[1730223876662,4.62,181.48,181.47,9.52561738]
[1730223877165,4.62,181.48,181.47,2.7555]
[1730223877359,4.62,181.48,181.46,6.77011738]
[1730223877566,4.62,181.48,181.45,6.77011738]
[1730223877968,4.62,181.48,181.39,4.62]
[1730223877969,4.62,181.48,181.47,9.52551738]
[1730223878169,4.62,181.51,181.47,6.77011738]
[1730223878371,4.62,181.51,181.49,6.77011738]
[1730223878572,4.62,181.51,181.49,2.755]
[1730223879571,2.69228022,181.56,181.5,6.77011738]
[1730223879775,4.62,181.55,181.5,6.77011738]
[1730223879964,6.77011738,181.54,181.5,6.77011738]
[1730223880266,9.52441738,181.54,181.5,2.7548]
[1730223881162,2.7547,181.52,181.49,6.77011738]
[1730223881370,6.77011738,181.52,181.4,5.5127]
[1730223881664,2.7546,181.53,181.49,9.52501738]
[1730223881871,6.77011738,181.54,181.49,6.77011738]
[1730223882070,6.77011738,181.53,181.49,6.77011738]
[1730223882768,9.52461738,181.53,181.49,2.7551]
[1730223883171,6.77011738,181.5,181.46,6.77011738]
[1730223883662,11.39011738,181.5,181.46,6.77011738]
[1730223883867,11.39011738,181.5,181.38,2.6037]
[1730223883868,6.77011738,181.48,181.43,6.77011738]
[1730223884065,6.77011738,181.46,181.38,2.6037]
[1730223884266,6.77011738,181.45,181.42,2.7561]
[1730223884461,4.62,181.45,181.42,2.7561]
[1730223885267,4.62,181.45,181.38,2.6037]
[1730223885268,11.39011738,181.45,181.38,2.6037]
[1730223885473,4.62,181.45,181.41,6.77011738]
[1730223885675,4.62,181.45,181.43,6.77011738]
[1730223885970,4.62,181.45,181.41,6.77011738]
[1730223886368,6.77011738,181.44,181.41,2.7562]
[1730223886569,6.77011738,181.43,181.39,6.77011738]
[1730223887674,6.77011738,181.44,181.39,6.77011738]
[1730223888472,6.77011738,181.43,181.38,2.6037]
[1730223888675,6.77011738,181.43,181.4,2.7565]
[1730223889278,6.77011738,181.41,181.39,2.7566]
[1730223889480,6.77011738,181.41,181.38,2.6037]
[1730223890778,6.77011738,181.42,181.38,2.6037]
[1730223890982,6.77011738,181.42,181.39,2.7566]
[1730223891690,6.77011738,181.42,181.4,2.7564]
[1730223892881,2.7558,181.45,181.41,2.7562]
[1730223893082,11.41011738,181.44,181.41,2.7562]
[1730223893677,6.77011738,181.42,181.41,2.7562]
[1730223893875,6.77011738,181.42,181.39,2.7566]
[1730223894074,6.77011738,181.4,181.39,2.7566]
[1730223894677,6.77011738,181.4,181.38,4.0845]
[1730223894877,6.77011738,181.39,181.38,4.0845]
[1730223895578,6.77011738,181.39,181.3,5.9169]
[1730223895775,6.77011738,181.38,181.33,6.77011738]
[1730223896176,6.77011738,181.38,181.34,2.7573]
[1730223896375,6.77011738,181.36,181.32,6.77011738]
[1730223897075,6.77011738,181.36,181.18,16.53]
[1730223897275,6.77011738,181.35,181.23,4.64]
[1730223897478,6.77011738,181.36,181.34,2.7573]
[1730223897678,4.64,181.35,181.34,2.7573]
[1730223897982,11.41011738,181.35,181.21,3.7478]
[1730223898183,11.41011738,181.35,181.32,2.7577]
[1730223898184,6.77011738,181.33,181.32,2.7577]
[1730223898379,6.77011738,181.33,181.28,6.77011738]
[1730223898687,6.77011738,181.34,181.3,6.77011738]
[1730223898982,6.77011738,181.34,181.33,2.7576]
[1730223899174,4.64,181.35,181.31,6.77011738]
[1730223899381,11.41011738,181.35,181.31,6.77011738]
[1730223899578,6.77011738,181.34,181.29,6.77011738]
[1730223899984,6.77011738,181.34,181.33,2.7575]
[1730223901380,11.41011738,181.35,181.33,2.7575]
[1730223901582,6.77011738,181.34,181.33,2.7575]
[1730223903374,6.77011738,181.34,181.23,10.1379]
[1730223903375,6.77011738,181.34,181.31,2.7578]
[1730223903681,7.3973,181.35,181.28,6.77011738]
[1730223903682,6.77011738,181.33,181.28,6.77011738]
[1730223904481,6.77011738,181.34,181.32,2.7577]
[1730223905086,6.77011738,181.33,181.32,2.7577]
[1730223905288,6.77011738,181.33,181.29,6.77011738]
[1730223905490,6.77011738,181.33,181.31,2.7577]
[1730223906580,6.77011738,181.33,181.32,2.7577]
[1730223906775,4.62,181.33,181.3,6.77011738]
[1730223907288,4.62,181.33,181.23,5.5179]
[1730223907488,11.39011738,181.33,181.29,6.77011738]
[1730223908376,11.39011738,181.33,181.32,2.7576]
[1730223908581,4.62,181.33,181.32,2.7576]
[1730223909787,11.39011738,181.33,181.31,2.7578]
[1730223910982,11.39011738,181.33,181.28,6.77011738]
[1730223911182,11.39011738,181.33,181.32,2.7577]
[1730223911386,11.39011738,181.33,181.28,6.77011738]
[1730223911891,2.74485317,181.36,181.31,6.77011738]
[1730223912087,4.62,181.33,181.32,6.77011738]
[1730223912398,6.77011738,181.36,181.34,2.7573]
[1730223912692,4.62,181.35,181.34,2.7573]
[1730223912988,11.39011738,181.35,181.28,6.77011738]
[1730223913291,6.77011738,181.33,181.28,6.77011738]
[1730223913490,6.77011738,181.33,181.32,2.7577]
[1730223913882,6.77011738,181.33,181.28,6.77011738]
[1730223914081,6.77011738,181.32,181.27,6.77011738]
[1730223914693,6.77011738,181.3,181.28,2.7582]
[1730223915181,11.39011738,181.3,181.28,2.7583]
[1730223916991,4.62,181.3,181.28,2.7583]
[1730223917889,4.62,181.3,181.27,2.7584]
[1730223918589,4.62,181.3,181.26,2.7585]
[1730223918788,6.77011738,181.31,181.25,6.77011738]
[1730223918988,4.62,181.3,181.25,6.77011738]
[1730223919294,4.62,181.3,181.27,2.7584]
[1730223919697,4.62,181.3,181.25,6.77011738]
[1730223919887,4.62,181.3,181.26,6.77011738]
[1730223920598,4.62,181.3,181.27,2.7584]
[1730223920995,4.62,181.3,181.26,6.77011738]
[1730223921499,2.70597649,181.36,181.29,6.77011738]
[1730223921694,4.62,181.35,181.31,6.77011738]
[1730223921900,6.77011738,181.34,181.23,252.08101808]
[1730223922098,6.77011738,181.34,181.31,2.7577]
[1730223922501,6.77011738,181.34,181.29,6.77011738]
[1730223922896,9.52751738,181.34,181.3,2.7579]
[1730223923092,6.77011738,181.33,181.3,2.7579]
[1730223923495,6.77011738,181.32,181.23,252.08101808]
[1730223923695,6.77011738,181.32,181.3,2.758]
[1730223924306,6.77011738,181.32,181.27,6.77011738]
[1730223924503,6.77011738,181.32,181.3,2.758]
[1730223925301,4.62,181.35,181.27,6.77011738]
[1730223925506,4.62,181.35,181.23,252.08101808]
[1730223925507,9.52751738,181.34,181.3,2.758]
[1730223925711,6.77011738,181.32,181.3,2.758]
[1730223926012,4.62,181.35,181.27,6.77011738]
[1730223926207,6.77011738,181.33,181.23,252.08101808]
[1730223926506,6.77011738,181.33,181.28,6.77011738]
[1730223926713,6.77011738,181.33,181.3,2.7579]
[1730223927709,6.77011738,181.32,181.23,252.08101808]
[1730223927917,9.52791738,181.32,181.29,2.7582]
[1730223928309,6.77011738,181.31,181.29,2.7582]
[1730223928618,7.3781,181.3,181.26,2.7586]
[1730223928815,6.77011738,181.29,181.25,6.77011738]
[1730223929112,4.62,181.3,181.28,2.7582]
[1730223929318,4.62,181.3,181.26,6.77011738]
[1730223930021,11.39011738,181.3,181.26,6.77011738]
[1730223930415,11.39011738,181.3,181.29,2.7582]
[1730223930716,4.62,181.3,181.29,2.7582]
[1730223931013,2.7583,181.29,181.24,2.7588]
[1730223931211,6.77011738,181.27,181.22,6.77011738]
[1730223931817,6.77011738,181.27,181.25,2.7587]
[1730223932505,6.77011738,181.27,181.24,2.7589]
[1730223932706,2.7582,181.29,181.22,6.77011738]
[1730223933020,6.77011738,181.27,181.24,2.7588]
[1730223933225,6.77011738,181.25,181.16,1.2955]
[1730223933414,6.77011738,181.23,181.16,1.2955]
[1730223933722,6.77011738,181.23,181.21,2.7594]
[1730223934509,6.77011738,181.22,180.9,5.76333876]
[1730223934720,6.77011738,181.22,181.16,6.77011738]
[1730223935112,6.77011738,181.22,181.11,2.5047]
[1730223935113,6.77011738,181.22,181.17,6.77011738]
[1730223935312,4.62,181.21,181.18,2.7598]
[1730223936217,6.77011738,181.2,181.11,2.5047]
[1730223936428,4.62,181.21,181.11,2.5047]
[1730223936429,6.77011738,181.19,181.11,2.5047]
[1730223936728,6.77011738,181.17,181.11,2.5047]
[1730223936913,6.77011738,181.17,181.12,6.77011738]
[1730223937122,4.62,181.16,181.13,2.7606]
[1730223937425,4.62,181.16,181.12,6.77011738]
[1730223938322,4.62,181.16,181.13,2.7605]
[1730223938622,4.62,181.16,180.98,378.87949431]
[1730223938623,6.77011738,181.14,181.08,6.77011738]
[1730223938828,6.77011738,181.13,181.08,2.7614]
[1730223939124,6.77011738,181.13,181.08,6.77011738]
[1730223939316,11.39011738,181.13,181.08,6.77011738]
[1730223940324,11.39011738,181.13,181.1,2.7611]
[1730223940711,11.39011738,181.13,181.06,3.7457]
[1730223940712,4.62,181.2,181.12,6.77011738]
[1730223940918,4.62,181.2,181.16,9.53021738]
[1730223941113,4.62,181.19,181.16,9.53021738]
[1730223941519,4.62,181.19,181.16,6.77011738]
[1730223942423,4.62,181.19,181.15,2.7603]
[1730223942822,4.62,181.19,181.13,10.60524828]
[1730223943625,4.62,181.19,181.15,2.7602]
[1730223944026,4.62,181.19,181.11,10.60524828]
[1730223944227,4.62,181.19,181.09,10.60524828]
[1730223944729,2.76,181.18,181.12,2.7608]
[1730223945531,2.7594,181.21,181.15,2.7602]
[1730223945721,4.62,181.2,181.15,2.7602]
[1730223945921,4.62,181.2,181.11,10.60524828]
[1730223946525,7.3795,181.2,181.11,10.60524828]
[1730223946731,4.62,181.2,181.11,10.60524828]
[1730223947132,4.62,181.2,181.15,2.7602]
[1730223947531,10.60524828,181.23,181.16,2.76]
[1730223947532,13.36444828,181.23,181.16,2.76]
[1730223947733,1.2461,181.25,181.19,10.60524828]
[1730223947734,4.62,181.25,181.19,10.60524828]
[1730223948435,4.62,181.25,181.21,2.7594]
[1730223950335,7.3788,181.25,181.21,2.7594]
[1730223950532,4.62,181.25,181.19,2.7597]
[1730223950735,2.7592,181.23,181.16,13.23194828]
[1730223950935,15.22524828,181.25,181.16,2.6267]
[1730223951235,15.22524828,181.25,181.17,2.76]
[1730223951435,15.22524828,181.25,181.16,1.3056]
[1730223952138,15.22524828,181.25,181.17,2.7599]
[1730223952436,15.22524828,181.25,181.14,10.60524828]
[1730223953033,2.7593,181.22,181.17,2.7599]
[1730223953233,15.22524828,181.25,181.14,10.60524828]
[1730223953435,2.7598,181.19,181.14,2.7604]
[1730223953630,4.62,181.19,181.12,10.60524828]
[1730223954030,2.76,181.18,181.13,2.7606]
[1730223954232,4.62,181.2,181.12,10.60524828]
[1730223954544,7.3796,181.2,181.15,2.7602]
[1730223954945,4.62,181.19,181.15,2.7602]
[1730223955146,2.76,181.18,181.1,2.4128]
[1730223955348,2.76,181.18,181.1,13.01804828]
[1730223955549,4.62,181.19,181.1,13.01804828]
[1730223955939,4.62,181.19,181.07,4.62]
[1730223955940,10.60524828,181.18,181.07,10.60524828]
[1730223956241,10.60524828,181.18,181.09,10.60524828]
[1730223956539,4.62,181.17,181.04,7.0619]
[1730223956846,4.62,181.17,181.08,10.60524828]
[1730223957041,4.62,181.17,181.08,13.36654828]
[1730223957843,2.80813214,181.16,181.08,13.36654828]
[1730223958337,2.7603,181.15,181.08,13.36654828]
[1730223958543,2.80813214,181.16,181.08,10.60524828]
[1730223958746,2.7606,181.14,181.08,10.60524828]
[1730223959348,2.7605,181.14,181.08,10.60524828]
[1730223959548,4.62,181.17,181.08,10.60524828]
[1730223959943,2.7606,181.14,181.08,10.60524828]
[1730223960146,4.62,181.17,181.08,10.60524828]
[1730223960546,4.62,181.17,181.05,10.60524828]
[1730223960742,10.60524828,181.14,181.04,2.4419]
[1730223961053,2.7612,181.09,181.02,2.7622]
[1730223961250,7.3812,181.09,181.0,1.2242]
[1730223961447,4.62,181.09,181.03,10.60524828]
[1730223961750,7.3812,181.09,181.03,10.60524828]
[1730223962246,15.22524828,181.09,181.0,1.2242]
[1730223962641,10.60524828,181.09,181.0,1.2242]
[1730223962847,4.62,181.08,181.0,1.2242]
[1730223963043,4.62,181.08,181.0,3.9867]
[1730223963348,4.62,181.07,181.01,10.60524828]
[1730223963541,4.62,181.07,181.01,13.36754828]
[1730223964139,2.7617,181.06,181.01,10.60524828]
[1730223964342,2.7617,181.06,181.0,3.9867]
[1730223964343,4.62,181.07,181.0,1.2242]
[1730223965548,2.762,181.04,181.0,1.2242]
[1730223965743,4.62,181.07,181.0,1.2242]
[1730223966148,2.7622,181.03,181.0,1.2242]
[1730223966351,4.62,181.07,181.0,1.2242]
[1730223966547,2.7618,181.05,180.99,2.7627]
[1730223966745,4.62,181.07,180.97,10.60524828]
[1730223967242,2.7623,181.02,180.97,2.7629]
[1730223967446,2.7623,181.02,180.93,3.7653]
[1730223967447,4.62,181.02,180.94,10.60524828]
[1730223967644,4.62,181.02,180.97,10.60524828]
[1730223968353,2.7618,181.05,180.97,13.36814828]
[1730223968554,4.62,181.04,180.97,10.60524828]
[1730223969055,2.7623,181.02,180.97,13.36814828]
[1730223969948,2.7618,181.05,180.99,2.7627]
[1730223970247,4.62,181.04,180.99,10.60524828]
[1730223970452,7.3821,181.04,180.98,2.7627]
[1730223970653,7.35699358,181.04,180.98,2.7627]
[1730223970947,7.35699358,181.04,180.97,10.60524828]
[1730223971143,2.7626,181.0,180.94,10.60524828]
[1730223971548,2.73699358,181.04,180.93,3.7653]
[1730223971549,2.7621,181.04,180.99,2.7627]
[1730223971748,4.62,181.05,180.96,10.60524828]
[1730223972456,4.62,181.05,180.93,3.7653]
[1730223972648,10.60524828,181.03,180.83,5.5302]
[1730223972846,13.32427533,181.03,180.91,10.60524828]
[1730223973049,13.32427533,181.03,180.93,2.7636]
[1730223973050,2.763,180.98,180.93,2.7636]
[1730223973351,4.62,180.97,180.85,2.5326]
[1730223973554,4.62,180.96,180.91,10.60524828]
[1730223973854,4.62,180.95,180.91,10.60524828]
[1730223974153,7.3833,180.95,180.91,10.60524828]
[1730223974554,7.3833,180.95,180.88,10.60524828]
[1730223974747,4.62,180.95,180.88,10.60524828]
[1730223975348,7.3834,180.95,180.83,2.7651]
[1730223975548,10.60524828,180.96,180.84,10.60524828]
[1730223975754,4.62,180.95,180.76,4.62]
[1730223976059,2.7639,180.92,180.86,2.7647]
[1730223976254,4.62,180.95,180.85,10.60524828]
[1730223976654,2.7639,180.92,180.85,13.36994828]
[1730223976855,1.2479,180.95,180.85,10.60524828]
[1730223977059,4.62,180.94,180.85,10.60524828]
[1730223977250,4.62,180.93,180.85,10.60524828]
[1730223977455,1.2479,180.95,180.85,10.60524828]
[1730223977654,4.62,180.94,180.85,10.60524828]
[1730223977859,2.7636,180.94,180.87,2.7645]
[1730223978054,4.62,180.93,180.85,10.60524828]
[1730223978452,4.62,180.93,180.51,593.35050851]
[1730223978453,2.7658,180.79,180.68,2.7673]
[1730223978652,1.0,180.93,180.74,10.60524828]
[1730223978653,10.60524828,180.89,180.74,10.60524828]
[1730223978858,10.60524828,180.83,180.72,5.1]
[1730223979054,2.7654,180.82,180.73,5.1]
[1730223979250,13.36955656,180.83,180.73,5.1]
[1730223979655,2.7658,180.79,180.73,5.1]
[1730223980056,10.64866091,180.78,180.67,10.60524828]
[1730223980364,21.25390919,180.77,180.56,62.46735298]
[1730223980558,10.64866091,180.76,180.63,17.0202608]
[1730223980761,10.64866091,180.75,180.64,5.1]
[1730223981061,10.64866091,180.74,180.65,7.8678]
[1730223981262,10.64866091,180.73,180.65,5.1]
[1730223981563,19.30430828,180.83,180.66,17.0202608]
[1730223981564,10.64866091,180.72,180.66,17.0202608]
[1730223981764,10.64866091,180.71,180.66,17.0202608]
[1730223981963,1.2713,180.78,180.66,17.0202608]
[1730223982259,3.75946402,180.77,180.66,17.0202608]